[Event "XXXI Torre Memorial 2019"]
[Site "Merida"]
[Date "2019.12.14"]
[Round "1.17"]
[White "Diaz Perez, Michel Alejandro"]
[Black "La Rota, Fabio"]
[Result "1-0"]
[ECO "A52"]
[WhiteElo "2455"]
[BlackElo "2154"]
[Annotator "ChessBase"]
[PlyCount "89"]
[EventDate "2019.12.13"]
[EventType "swiss"]
[EventCountry "MEX"]
[SourceTitle "playchess.com"]
[Source "ChessBase"]
[SourceQuality "1"]
[TimeControl "5400+30"]

1. d4 {[%emt 0:00:00]} Nf6 {[%emt 0:01:18]} 2. c4 {[%emt 0:00:00]} e5 {[%emt 0:00:12]} 3. dxe5 {[%emt 0:00:40]} Ng4 {[%emt 0:00:24]} 4. Nf3 {[%emt 0:00:03]} Nc6 {[%emt 0:00:22]} 5. Nc3 {[%emt 0:00:57]} Ngxe5 {[%emt 0:01:28]} 6. Nxe5 {[%emt 0:03:42]} Nxe5 {[%emt 0:00:11]} 7. e4 {[%emt 0:00:10]} Bc5 {[%emt 0:03:23]} 8. Bf4 {[%emt 0:05:24]} d6 {[%emt 0:06:17]} 9. Be2 {[%emt 0:01:29]} O-O {[%emt 0:01:28]} 10. O-O {[%emt 0:00:32]} Be6 {[%emt 0:02:09]} 11. b3 {[%emt 0:02:28]} f5 {[%emt 0:14:13]} 12. exf5 {[%emt 0:01:33]} Rxf5 {[%emt 0:00:46]} 13. Bg3 {[%emt 0:00:22]} Qd7 {[%emt 0:04:43]} 14. Na4 {[%emt 0:07:31]} Qc6 {[%emt 0:09:34]} 15. Nxc5 {[%emt 0:04:09]} Qxc5 {[%emt 0:00:09]} 16. Qd2 {[%emt 0:00:10]} a5 {[%emt 0:00:38]} 17. Kh1 {[%emt 0:01:30]} Nc6 {[%emt 0:06:02]} 18. Rfe1 {[%emt 0:05:33]} Bf7 {[%emt 0:04:30]} 19. f4 {[%emt 0:04:14]} Bh5 {[%emt 0:02:12]} 20. Bd3 {[%emt 0:01:23]} Rff8 {[%emt 0:00:33]} 21. Bf2 {[%emt 0:02:47]} Qb4 {[%emt 0:00:22]} 22. Qc2 {[%emt 0:00:47]} a4 {[%emt 0:01:41]} 23. Bxh7+ {[%emt 0:04:16]} Kh8 {[%emt 0:00:02]} 24. Rab1 {[%emt 0:00:42]} Rxf4 {[%emt 0:03:47]} 25. Bg3 {[%emt 0:02:03]} axb3 {[%emt 0:01:53]} 26. axb3 {[%emt 0:00:26]} Rf6 {[%emt 0:01:02]} 27. Be4 {[%emt 0:01:00]} Raf8 {[%emt 0:01:51]} 28. h3 {[%emt 0:00:23]} Nd4 {[%emt 0:06:06]} 29. Qd3 {[%emt 0:02:32]} c5 {[%emt 0:01:18]} 30. Bh4 {[%emt 0:01:00]} Re6 {[%emt 0:00:44]} 31. Bd5 {[%emt 0:09:59]} Rh6 {[%emt 0:04:24]} 32. Rf1 {[%emt 0:02:21]} Re8 {[%emt 0:01:15]} 33. Rbe1 {[%emt 0:02:49]} Be2 {[%emt 0:07:44]} 34. Qg3 {[%emt 0:05:18]} Ra8 {[%emt 0:08:27]} 35. Rf7 {[%emt 0:01:15]} Rh7 {[%emt 0:00:46]} 36. Qf4 {[%emt 0:03:23]} Rh5 {[%emt 0:01:18]} 37. Bf2 {[%emt 0:01:22]} Qc3 {[%emt 0:01:26]} 38. Rf8+ {[%emt 0:01:43]} Rxf8 {[%emt 0:00:02]} 39. Qxf8+ {[%emt 0:00:13]} Kh7 {[%emt 0:00:02]} 40. Qg8+ {[%emt 0:00:07]} Kh6 {[%emt 0:00:14]} 41. Qh8+ {[%emt 0:00:08]} Kg6 {[%emt 0:00:18]} 42. Qe8+ {[%emt 0:00:08]} Kh6 {[%emt 0:00:57]} 43. Be3+ {[%emt 0:01:46]} Rg5 {[%emt 0:00:16]} 44. Bxg5+ {[%emt 0:00:36]} Kxg5 {[%emt 0:00:02]} 45. Rxe2 {[%emt 0:00:41]} 1-0

[Event "XXXI Torre Memorial 2019"]
[Site "Merida"]
[Date "2019.12.14"]
[Round "1.19"]
[White "Berdayes Ason, Dylan Isidro"]
[Black "Fuentes Godoy, Lilia Ivonne"]
[Result "1/2-1/2"]
[ECO "B18"]
[WhiteElo "2448"]
[BlackElo "2132"]
[Annotator "NA"]
[PlyCount "116"]
[EventDate "2019.12.13"]
[EventType "swiss"]
[EventCountry "MEX"]
[SourceTitle "playchess.com"]
[Source "ChessBase"]
[SourceQuality "1"]
[TimeControl "5400+30"]

1. e4 c6 2. d4 d5 3. Nd2 dxe4 4. Nxe4 Bf5 5. Ng3 Bg6 6. Nh3 e6 7. Nf4 Bd6 8. Ngh5 Bf8 9. Bc4 Nf6 10. O-O Nxh5 11. Nxh5 Qh4 12. Nf4 Bd6 13. g3 Qd8 14. Re1 O-O 15. Nxg6 hxg6 16. Qg4 Re8 17. Bg5 Qc8 18. h4 Nd7 19. h5 Nf8 20. h6 Nh7 21. Bd2 Bf8 22. hxg7 Bxg7 23. c3 Nf6 24. Qh4 Nd5 25. Kg2 Qd8 26. Bg5 f6 27. Bh6 Kf7 28. Bxg7 Kxg7 29. Rh1 Rh8 30. Qe4 Qd6 31. Rae1 Nc7 32. Qg4 b5 33. Bb3 a5 34. a4 bxa4 35. Bxa4 Rab8 36. Rxh8 Rxh8 37. Qe4 Rb8 38. Re2 Rb6 39. c4 Rb4 40. b3 Rb8 41. Qxc6 Qxc6+ 42. Bxc6 Rxb3 43. d5 Kf7 44. d6 Na6 45. Rd2 Nb4 46. Be4 Ke8 47. d7+ Kd8 48. Bxg6 a4 49. Rd6 a3 50. Be8 a2 51. Rb6 Kc7 52. Rd6 Kd8 53. Rb6 Kc7 54. Rd6 Kd8 55. Rb6 Ke7 56. Rb8 Nc6 57. Ra8 Nb4 58. Rb8 Nc6 1/2-1/2

[Event "XXXI Torre Memorial 2019"]
[Site "Merida"]
[Date "2019.12.14"]
[Round "2.1"]
[White "Ramirez, Alejandro"]
[Black "Figueredo Losada, Leonel"]
[Result "1/2-1/2"]
[ECO "A04"]
[WhiteElo "2589"]
[BlackElo "2381"]
[Annotator "ChessBase"]
[PlyCount "57"]
[EventDate "2019.12.13"]
[EventType "swiss"]
[EventCountry "MEX"]
[SourceTitle "playchess.com"]
[Source "ChessBase"]
[SourceQuality "1"]
[TimeControl "5400+30"]

1. Nf3 {[%emt 0:08:32]} d6 {[%emt 0:00:00]} 2. d4 {[%emt 0:00:09]} g6 {[%emt 0:00:06]} 3. Bf4 {[%emt 0:00:28]} Bg7 {[%emt 0:00:14]} 4. e3 {[%emt 0:00:06]} Nd7 {[%emt 0:01:00]} 5. h3 {[%emt 0:06:19]} e5 {[%emt 0:00:32]} 6. Bh2 {[%emt 0:00:02]} Nh6 {[%emt 0:01:15]} 7. dxe5 {[%emt 0:02:34]} dxe5 {[%emt 0:04:53]} 8. e4 {[%emt 0:02:27]} O-O {[%emt 0:02:54]} 9. Nc3 {[%emt 0:00:53]} Kh8 {[%emt 0:02:07]} 10. Bc4 {[%emt 0:02:53]} Qe7 {[%emt 0:08:08]} 11. Qd2 {[%emt 0:03:40]} Nb6 {[%emt 0:08:47]} 12. Bb3 {[%emt 0:06:26]} Rd8 {[%emt 0:02:21]} 13. Qe2 {[%emt 0:05:45]} f6 {[%emt 0:00:49]} 14. O-O {[%emt 0:00:19]} Be6 {[%emt 0:00:33]} 15. Ne1 {[%emt 0:01:07]} Nf7 {[%emt 0:08:45]} 16. Nd3 {[%emt 0:00:04]} c6 {[%emt 0:03:12]} 17. h4 {[%emt 0:01:27]} Nd7 {[%emt 0:06:53]} 18. h5 {[%emt 0:04:55]} Bxb3 {[%emt 0:05:59]} 19. axb3 {[%emt 0:00:09]} Nc5 {[%emt 0:00:28]} 20. Nxc5 {[%emt 0:04:20]} Qxc5 {[%emt 0:00:03]} 21. Qg4 {[%emt 0:01:44]} Nh6 {[%emt 0:03:29]} 22. Qg3 {[%emt 0:02:29]} g5 {[%emt 0:00:41]} 23. Rfd1 {[%emt 0:00:05]} b5 {[%emt 0:01:58]} 24. Qf3 {[%emt 0:13:21]} b4 {[%emt 0:03:21]} 25. Na4 {[%emt 0:01:26]} Qxc2 {[%emt 0:00:49]} 26. Rdc1 {[%emt 0:00:15]} Qd2 {[%emt 0:03:05]} 27. Rd1 {[%emt 0:00:11]} Qc2 {[%emt 0:00:09]} 28. Rdc1 {[%emt 0:01:45]} Qd2 {[%emt 0:00:06]} 29. Rd1 1/2-1/2

[Event "XXXI Torre Memorial 2019"]
[Site "Merida"]
[Date "2019.12.14"]
[Round "2.2"]
[White "Cordova, Emilio"]
[Black "Elias Reyes, Jorge Roberto"]
[Result "1-0"]
[ECO "E06"]
[WhiteElo "2585"]
[BlackElo "2379"]
[Annotator "ChessBase"]
[PlyCount "80"]
[EventDate "2019.12.13"]
[EventType "swiss"]
[EventCountry "MEX"]
[SourceTitle "playchess.com"]
[Source "ChessBase"]
[SourceQuality "1"]
[TimeControl "5400+30"]

1. d4 {[%emt 0:13:39]} Nf6 {[%emt 0:00:00]} 2. Nf3 {[%emt 0:00:04]} d5 {[%emt 0:00:00]} 3. c4 {[%emt 0:00:06]} e6 {[%emt 0:00:00]} 4. g3 {[%emt 0:01:09]} Be7 {[%emt 0:00:00]} 5. Bg2 {[%emt 0:00:06]} O-O {[%emt 0:00:00]} 6. Qc2 {[%emt 0:03:03]} c5 {[%emt 0:03:03]} 7. dxc5 {[%emt 0:00:08]} Qa5+ {[%emt 0:02:04]} 8. Nc3 {[%emt 0:13:59]} dxc4 {[%emt 0:01:26]} 9. O-O {[%emt 0:02:57]} Qxc5 {[%emt 0:11:36]} 10. Na4 {[%emt 0:04:45]} Qh5 {[%emt 0:13:58]} 11. Qxc4 {[%emt 0:01:16]} b5 {[%emt 0:08:04]} 12. Qh4 {[%emt 0:00:06]} Bb7 {[%emt 0:02:51]} 13. Qxh5 {[%emt 0:00:06]} Nxh5 {[%emt 0:00:04]} 14. Nc3 {[%emt 0:00:05]} b4 {[%emt 0:11:31]} 15. Na4 {[%emt 0:00:52]} Nd7 {[%emt 0:02:04]} 16. Be3 {[%emt 0:02:48]} Nhf6 {[%emt 0:02:20]} 17. Rfc1 {[%emt 0:00:44]} Rfc8 {[%emt 0:01:52]} 18. Nd4 {[%emt 0:02:35]} Bxg2 {[%emt 0:01:17]} 19. Kxg2 {[%emt 0:00:05]} Nd5 {[%emt 0:10:40]} 20. Bd2 {[%emt 0:05:25]} Nc5 {[%emt 0:05:15]} 21. Nxc5 {[%emt 0:00:46]} Bxc5 {[%emt 0:00:04]} 22. Nb3 {[%emt 0:00:23]} Be7 {[%emt 0:00:46]} 23. e4 {[%emt 0:04:38]} Nb6 {[%emt 0:01:00]} 24. Na5 {[%emt 0:01:07]} Na4 {[%emt 0:09:14]} 25. b3 {[%emt 0:08:15]} Nc3 {[%emt 0:05:50]} 26. Bxc3 {[%emt 0:00:08]} Rxc3 {[%emt 0:01:35]} 27. Nc6 {[%emt 0:06:33]} Bf6 {[%emt 0:03:08]} 28. e5 {[%emt 0:07:22]} Rc8 {[%emt 0:01:35]} 29. Rxc3 {[%emt 0:00:07]} bxc3 {[%emt 0:00:03]} 30. Nxa7 {[%emt 0:00:06]} Ra8 {[%emt 0:01:55]} 31. Nc6 {[%emt 0:05:49]} Rc8 {[%emt 0:00:48]} 32. exf6 {[%emt 0:01:56]} Rxc6 {[%emt 0:00:01]} 33. Kf3 {[%emt 0:01:11]} gxf6 {[%emt 0:01:26]} 34. Ke3 {[%emt 0:00:11]} Kg7 {[%emt 0:00:54]} 35. Kd3 {[%emt 0:00:10]} Rc5 {[%emt 0:00:20]} 36. b4 {[%emt 0:00:23]} Rf5 {[%emt 0:00:18]} 37. f4 {[%emt 0:00:39]} e5 {[%emt 0:00:24]} 38. Rf1 {[%emt 0:01:10]} Rh5 {[%emt 0:00:26]} 39. h4 {[%emt 0:00:08]} exf4 {[%emt 0:01:05]} 40. Rxf4 {[%emt 0:00:06]} Re5 {[%emt 0:00:04]} 1-0

[Event "XXXI Torre Memorial 2019"]
[Site "Merida"]
[Date "2019.12.14"]
[Round "2.3"]
[White "Albornoz Cabrera, Carlos Daniel"]
[Black "Ordaz Valdes, Lisandra Teresa"]
[Result "1-0"]
[ECO "D38"]
[WhiteElo "2555"]
[BlackElo "2376"]
[Annotator "ChessBase"]
[PlyCount "91"]
[EventDate "2019.12.13"]
[EventType "swiss"]
[EventCountry "MEX"]
[SourceTitle "playchess.com"]
[Source "ChessBase"]
[SourceQuality "1"]
[TimeControl "5400+30"]

1. Nf3 {[%emt 0:00:00]} d5 {[%emt 0:00:00]} 2. d4 {[%emt 0:00:00]} Nf6 {[%emt 0:00:15]} 3. c4 {[%emt 0:00:00]} e6 {[%emt 0:00:04]} 4. Nc3 {[%emt 0:00:00]} Bb4 {[%emt 0:00:30]} 5. cxd5 {[%emt 0:00:04]} exd5 {[%emt 0:00:07]} 6. Bg5 {[%emt 0:00:03]} h6 {[%emt 0:00:27]} 7. Bh4 {[%emt 0:00:04]} O-O {[%emt 0:00:10]} 8. e3 {[%emt 0:00:15]} Bf5 {[%emt 0:00:10]} 9. Qb3 {[%emt 0:00:48]} Bxc3+ {[%emt 0:01:50]} 10. bxc3 {[%emt 0:00:05]} Nbd7 {[%emt 0:00:09]} 11. Be2 {[%emt 0:00:05]} c5 {[%emt 0:00:46]} 12. dxc5 {[%emt 0:00:04]} Nxc5 {[%emt 0:03:09]} 13. Qb4 {[%emt 0:00:05]} Nce4 {[%emt 0:04:01]} 14. Nd4 {[%emt 0:01:38]} Bh7 {[%emt 0:00:33]} 15. O-O {[%emt 0:00:41]} b6 {[%emt 0:11:31]} 16. f3 {[%emt 0:09:20]} Nc5 {[%emt 0:08:51]} 17. Rfd1 {[%emt 0:02:22]} Qe7 {[%emt 0:01:55]} 18. Bf2 {[%emt 0:00:36]} Rac8 {[%emt 0:00:16]} 19. Rac1 {[%emt 0:10:59]} Rfd8 {[%emt 0:04:30]} 20. c4 {[%emt 0:03:35]} Re8 {[%emt 0:06:57]} 21. Qd2 {[%emt 0:05:40]} dxc4 {[%emt 0:14:35]} 22. Bxc4 {[%emt 0:01:04]} a6 {[%emt 0:01:35]} 23. Bf1 {[%emt 0:11:56]} Nfd7 {[%emt 0:06:05]} 24. e4 {[%emt 0:06:22]} Ne5 {[%emt 0:02:27]} 25. Nb3 {[%emt 0:02:32]} Rcd8 {[%emt 0:08:46]} 26. Qe3 {[%emt 0:02:59]} Ned7 {[%emt 0:09:18]} 27. Qf4 {[%emt 0:06:00]} Nxb3 {[%emt 0:08:36]} 28. axb3 {[%emt 0:00:06]} Nc5 {[%emt 0:00:17]} 29. Bxc5 {[%emt 0:02:17]} bxc5 {[%emt 0:00:05]} 30. Bxa6 {[%emt 0:00:55]} Rxd1+ {[%emt 0:02:17]} 31. Rxd1 {[%emt 0:00:02]} Rd8 {[%emt 0:00:17]} 32. Rxd8+ {[%emt 0:04:10]} Qxd8 {[%emt 0:00:02]} 33. Qe3 {[%emt 0:03:16]} Qd1+ {[%emt 0:03:48]} 34. Kf2 {[%emt 0:00:24]} Qd6 {[%emt 0:00:57]} 35. Bc4 {[%emt 0:01:17]} Qxh2 {[%emt 0:01:24]} 36. Qxc5 {[%emt 0:00:34]} Qh4+ {[%emt 0:00:08]} 37. Kg1 {[%emt 0:01:32]} Qe1+ {[%emt 0:00:37]} 38. Bf1 {[%emt 0:00:02]} Bg6 {[%emt 0:00:06]} 39. b4 {[%emt 0:00:14]} Qb1 {[%emt 0:00:55]} 40. b5 {[%emt 0:00:13]} f5 {[%emt 0:00:12]} 41. b6 {[%emt 0:01:41]} fxe4 {[%emt 0:00:46]} 42. Qc8+ {[%emt 0:01:13]} Kh7 {[%emt 0:00:05]} 43. b7 {[%emt 0:00:07]} Qb6+ {[%emt 0:01:26]} 44. Kh1 {[%emt 0:00:11]} Qb1 {[%emt 0:00:31]} 45. b8=Q {[%emt 0:00:11]} Qxf1+ {[%emt 0:00:06]} 46. Kh2 {[%emt 0:00:04]} 1-0

[Event "XXXI Torre Memorial 2019"]
[Site "Merida"]
[Date "2019.12.14"]
[Round "2.4"]
[White "Almeida Quintana, Omar"]
[Black "Perez Leiva, Jerzy Jesus"]
[Result "1-0"]
[ECO "E11"]
[WhiteElo "2554"]
[BlackElo "2373"]
[Annotator "ChessBase"]
[PlyCount "63"]
[EventDate "2019.12.13"]
[EventType "swiss"]
[EventCountry "MEX"]
[SourceTitle "playchess.com"]
[Source "ChessBase"]
[SourceQuality "1"]
[TimeControl "5400+30"]

1. d4 {[%emt 0:00:00]} Nf6 {[%emt 0:00:00]} 2. c4 {[%emt 0:00:00]} e6 {[%emt 0:00:00]} 3. Nf3 {[%emt 0:00:10]} Bb4+ {[%emt 0:00:01]} 4. Nbd2 {[%emt 0:00:10]} O-O {[%emt 0:00:18]} 5. a3 {[%emt 0:00:07]} Be7 {[%emt 0:00:05]} 6. e3 {[%emt 0:01:01]} b6 {[%emt 0:02:07]} 7. Bd3 {[%emt 0:00:07]} Bb7 {[%emt 0:00:04]} 8. O-O {[%emt 0:00:14]} c5 {[%emt 0:00:23]} 9. b3 {[%emt 0:00:14]} d5 {[%emt 0:00:38]} 10. Bb2 {[%emt 0:00:10]} Nc6 {[%emt 0:00:45]} 11. Qe2 {[%emt 0:03:34]} dxc4 {[%emt 0:04:28]} 12. bxc4 {[%emt 0:00:37]} Qc7 {[%emt 0:00:19]} 13. Rac1 {[%emt 0:05:45]} Rfd8 {[%emt 0:01:14]} 14. Rfd1 {[%emt 0:02:12]} Rac8 {[%emt 0:08:02]} 15. Nb3 {[%emt 0:00:31]} Na5 {[%emt 0:12:35]} 16. Nxa5 {[%emt 0:01:06]} bxa5 {[%emt 0:00:02]} 17. Ne5 {[%emt 0:00:52]} Bd6 {[%emt 0:02:22]} 18. f4 {[%emt 0:03:57]} Qe7 {[%emt 0:05:12]} 19. Rb1 {[%emt 0:08:56]} Ne4 {[%emt 0:05:44]} 20. Qc2 {[%emt 0:11:35]} f5 {[%emt 0:00:08]} 21. d5 {[%emt 0:05:02]} exd5 {[%emt 0:22:43]} 22. cxd5 {[%emt 0:00:17]} Bxe5 {[%emt 0:06:59]} 23. Bxe5 {[%emt 0:00:20]} c4 {[%emt 0:00:30]} 24. Bxe4 {[%emt 0:07:37]} fxe4 {[%emt 0:00:05]} 25. d6 {[%emt 0:00:13]} Qd7 {[%emt 0:05:02]} 26. Qc3 {[%emt 0:00:12]} Ba6 {[%emt 0:02:27]} 27. Qxa5 {[%emt 0:00:51]} c3 {[%emt 0:00:35]} 28. Bxc3 {[%emt 0:01:01]} Be2 {[%emt 0:03:26]} 29. Rd2 {[%emt 0:05:50]} Bc4 {[%emt 0:08:28]} 30. h3 {[%emt 0:00:22]} Rc6 {[%emt 0:00:55]} 31. Rb7 {[%emt 0:00:33]} Qxb7 {[%emt 0:00:42]} 32. Qxd8+ {[%emt 0:00:10]} 1-0

[Event "XXXI Torre Memorial 2019"]
[Site "Merida"]
[Date "2019.12.14"]
[Round "2.5"]
[White "Ortiz Suarez, Isan Reynaldo"]
[Black "Coto Mederos, Michel"]
[Result "1-0"]
[ECO "C42"]
[WhiteElo "2549"]
[BlackElo "2352"]
[Annotator "ChessBase"]
[PlyCount "67"]
[EventDate "2019.12.13"]
[EventType "swiss"]
[EventCountry "MEX"]
[SourceTitle "playchess.com"]
[Source "ChessBase"]
[SourceQuality "1"]
[TimeControl "5400+30"]

1. e4 e5 2. Nf3 Nf6 3. Nxe5 d6 4. Nc4 Nxe4 5. Qe2 Qe7 6. Ne3 Be6 7. g3 Nc6 8. Bg2 d5 9. Nc3 Nxc3 10. bxc3 O-O-O 11. Rb1 a6 12. O-O Qd7 13. Rd1 Bc5 14. d4 Ba7 15. c4 Nxd4 16. Qf1 Qa4 17. cxd5 Bd7 18. Bb2 f6 19. Qd3 Nb5 20. c4 Nd6 21. Bd4 Bxd4 22. Qxd4 Kb8 23. c5 Qxd4 24. Rxd4 Nb5 25. Rdb4 Bc8 26. a4 Na7 27. Nc4 Rhe8 28. Na5 b6 29. d6 b5 30. axb5 axb5 31. Rxb5+ Nxb5 32. Rxb5+ Ka7 33. Nc6+ Ka6 34. Ra5+ 1-0

[Event "XXXI Torre Memorial 2019"]
[Site "Merida"]
[Date "2019.12.14"]
[Round "2.6"]
[White "Drazic, Sinisa"]
[Black "Gonzalez Zamora, Juan Carlos"]
[Result "1/2-1/2"]
[ECO "A45"]
[WhiteElo "2371"]
[BlackElo "2535"]
[Annotator "ChessBase"]
[PlyCount "199"]
[EventDate "2019.12.13"]
[EventType "swiss"]
[EventCountry "MEX"]
[SourceTitle "playchess.com"]
[Source "ChessBase"]
[SourceQuality "1"]
[TimeControl "5400+30"]

1. d4 {[%emt 0:00:00]} Nf6 {[%emt 0:03:05]} 2. Bg5 {[%emt 0:00:00]} Ne4 {[%emt 0:00:35]} 3. Bf4 {[%emt 0:00:00]} d5 {[%emt 0:00:08]} 4. Nd2 {[%emt 0:00:03]} Nf6 {[%emt 0:01:18]} 5. e3 {[%emt 0:00:14]} g6 {[%emt 0:00:03]} 6. h3 Bg7 {[%emt 0:00:05]} 7. Ngf3 {[%emt 0:01:58]} O-O {[%emt 0:00:19]} 8. Be2 {[%emt 0:00:03]} c5 {[%emt 0:00:10]} 9. c3 {[%emt 0:00:10]} Nfd7 {[%emt 0:01:12]} 10. O-O {[%emt 0:00:21]} Nc6 {[%emt 0:00:02]} 11. Qb3 {[%emt 0:05:36]} e6 {[%emt 0:06:14]} 12. Bd6 {[%emt 0:01:09]} c4 {[%emt 0:00:12]} 13. Qc2 {[%emt 0:00:14]} Re8 {[%emt 0:00:00]} 14. b3 {[%emt 0:02:47]} cxb3 {[%emt 0:03:24]} 15. axb3 {[%emt 0:00:09]} b6 {[%emt 0:13:26]} 16. b4 {[%emt 0:09:41]} Bb7 {[%emt 0:00:11]} 17. b5 {[%emt 0:00:46]} Ne7 {[%emt 0:08:34]} 18. Ra4 {[%emt 0:01:09]} Nc8 {[%emt 0:03:34]} 19. Bg3 {[%emt 0:00:38]} e5 {[%emt 0:01:53]} 20. Nxe5 {[%emt 0:06:58]} Nxe5 {[%emt 0:00:21]} 21. Bxe5 {[%emt 0:00:03]} Bxe5 {[%emt 0:00:14]} 22. dxe5 {[%emt 0:00:02]} Rxe5 {[%emt 0:00:17]} 23. Nf3 {[%emt 0:00:03]} Re7 {[%emt 0:00:11]} 24. Rfa1 {[%emt 0:00:07]} Rc7 {[%emt 0:00:50]} 25. Nd4 {[%emt 0:00:13]} Qe7 {[%emt 0:04:45]} 26. Bg4 {[%emt 0:10:15]} Nd6 {[%emt 0:06:09]} 27. Rxa7 {[%emt 0:08:25]} Rxa7 {[%emt 0:00:18]} 28. Rxa7 {[%emt 0:00:02]} Ne4 {[%emt 0:01:16]} 29. Bf3 {[%emt 0:00:59]} Rxc3 {[%emt 0:01:23]} 30. Qb2 {[%emt 0:02:15]} Rc7 {[%emt 0:04:28]} 31. Bxe4 {[%emt 0:00:33]} dxe4 {[%emt 0:00:13]} 32. Qa3 {[%emt 0:13:46]} Qxa3 {[%emt 0:00:41]} 33. Rxa3 {[%emt 0:00:01]} Kf8 {[%emt 0:00:10]} 34. g4 {[%emt 0:00:14]} Ke7 {[%emt 0:06:44]} 35. Kg2 {[%emt 0:00:02]} Kd6 {[%emt 0:01:21]} 36. Kg3 {[%emt 0:00:07]} Bd5 {[%emt 0:00:12]} 37. Kf4 {[%emt 0:00:23]} f6 {[%emt 0:00:11]} 38. h4 {[%emt 0:00:57]} Rf7 {[%emt 0:05:27]} 39. Ra1 {[%emt 0:01:14]} Rc7 {[%emt 0:03:26]} 40. Rd1 {[%emt 0:01:53]} Rc5 {[%emt 0:00:45]} 41. g5 {[%emt 0:02:17]} fxg5+ {[%emt 0:00:17]} 42. hxg5 {[%emt 0:00:06]} Rc7 {[%emt 0:00:18]} 43. Rh1 {[%emt 0:01:17]} Rf7+ {[%emt 0:00:06]} 44. Kg3 {[%emt 0:00:02]} Bc4 {[%emt 0:02:23]} 45. Rh4 {[%emt 0:06:09]} Kd5 {[%emt 0:03:07]} 46. Kg2 {[%emt 0:03:05]} Bd3 {[%emt 0:00:36]} 47. Rh1 {[%emt 0:00:04]} Rc7 {[%emt 0:03:44]} 48. Kg3 {[%emt 0:00:28]} Kd6 {[%emt 0:00:28]} 49. Ra1 {[%emt 0:02:21]} Rc5 {[%emt 0:01:15]} 50. Kf4 {[%emt 0:00:11]} Rc7 {[%emt 0:01:55]} 51. Ra8 {[%emt 0:00:56]} Rf7+ {[%emt 0:01:13]} 52. Kg3 {[%emt 0:00:01]} Kc5 {[%emt 0:01:25]} 53. Re8 {[%emt 0:01:21]} Rd7 {[%emt 0:03:53]} 54. Rc8+ {[%emt 0:01:26]} Kb4 {[%emt 0:01:51]} 55. Rb8 {[%emt 0:05:10]} Kc5 {[%emt 0:00:23]} 56. Re8 {[%emt 0:00:11]} Kb4 {[%emt 0:02:52]} 57. Re6 {[%emt 0:01:31]} Rb7 {[%emt 0:00:18]} 58. Re5 {[%emt 0:00:24]} Rf7 {[%emt 0:01:24]} 59. Re6 {[%emt 0:01:19]} Rb7 {[%emt 0:00:08]} 60. Kf4 {[%emt 0:01:10]} Bxb5 {[%emt 0:02:21]} 61. Kxe4 {[%emt 0:01:56]} Bc4 {[%emt 0:00:20]} 62. Rc6 {[%emt 0:02:33]} b5 {[%emt 0:02:11]} 63. Ke5 {[%emt 0:02:21]} Kc3 {[%emt 0:00:38]} 64. f4 {[%emt 0:05:38]} Kd3 {[%emt 0:00:27]} 65. f5 {[%emt 0:01:12]} Re7+ {[%emt 0:01:59]} 66. Kf6 {[%emt 0:00:21]} Rxe3 {[%emt 0:01:43]} 67. fxg6 {[%emt 0:00:15]} hxg6 {[%emt 0:00:01]} 68. Rd6 {[%emt 0:00:08]} Kc3 {[%emt 0:00:50]} 69. Nxb5+ {[%emt 0:00:28]} Bxb5 {[%emt 0:00:08]} 70. Kxg6 {[%emt 0:00:03]} Kc4 {[%emt 0:00:49]} 71. Kf6 {[%emt 0:01:28]} Kc5 {[%emt 0:00:26]} 72. Re6 {[%emt 0:00:24]} Rf3+ {[%emt 0:00:15]} 73. Ke7 {[%emt 0:00:03]} Bc4 {[%emt 0:00:51]} 74. g6 {[%emt 0:01:04]} Ra3 {[%emt 0:00:43]} 75. Re1 {[%emt 0:00:33]} Ra7+ {[%emt 0:00:16]} 76. Kf8 {[%emt 0:00:38]} Kd6 {[%emt 0:00:28]} 77. Re4 {[%emt 0:01:17]} Be6 {[%emt 0:00:39]} 78. Re1 {[%emt 0:01:19]} Rb7 {[%emt 0:00:53]} 79. Re2 {[%emt 0:00:11]} Rb8+ {[%emt 0:00:42]} 80. Kg7 {[%emt 0:00:02]} Ke7 {[%emt 0:00:15]} 81. Re1 {[%emt 0:00:20]} Rb2 {[%emt 0:00:36]} 82. Rg1 {[%emt 0:01:35]} Kd6 {[%emt 0:00:36]} 83. Rg5 {[%emt 0:00:24]} Rb8 {[%emt 0:00:27]} 84. Ra5 {[%emt 0:00:13]} Bc4 {[%emt 0:00:38]} 85. Ra4 {[%emt 0:00:19]} Be6 {[%emt 0:00:45]} 86. Ra5 {[%emt 0:00:19]} Rg8+ {[%emt 0:00:18]} 87. Kf6 {[%emt 0:00:03]} Rf8+ {[%emt 0:00:08]} 88. Kg7 {[%emt 0:00:02]} Rf2 {[%emt 0:00:24]} 89. Rb5 {[%emt 0:01:08]} Rg2 {[%emt 0:00:19]} 90. Kf6 {[%emt 0:00:12]} Bc4 {[%emt 0:00:27]} 91. Rg5 {[%emt 0:00:35]} Re2 {[%emt 0:00:20]} 92. Rg4 {[%emt 0:00:23]} Bd5 {[%emt 0:00:58]} 93. Rg5 {[%emt 0:00:23]} Re6+ {[%emt 0:01:01]} 94. Kg7 {[%emt 0:00:03]} Bc4 {[%emt 0:00:49]} 95. Rg4 {[%emt 0:00:09]} Bd5 {[%emt 0:00:37]} 96. Rg5 {[%emt 0:00:15]} Be4 {[%emt 0:00:33]} 97. Kf7 {[%emt 0:00:22]} Re7+ {[%emt 0:00:20]} 98. Kf6 {[%emt 0:00:04]} Re6+ {[%emt 0:00:46]} 99. Kf7 {[%emt 0:00:03]} Re7+ {[%emt 0:00:28]} 100. Kf6 {[%emt 0:00:04] Ke5+} 1/2-1/2